[Event "Early-Titled-Tuesday-Blitz-March-19-2024"]
[Site "Chess.com"]
[Date "2024.03.19"]
[Round "1"]
[White "Casper"]
[Black "Alen_Yeremyann"]
[Result "1/2-1/2"]
[WhiteElo "2470"]
[BlackElo "2823"]
[TimeControl "180+1"]
[EndTime "8:06:03 PDT"]
[Termination "Game drawn by repetition"]

1. Nf3 {[%clk 0:02:56.5]} 1... Nf6 {[%clk 0:03:00.2]} 2. b3 {[%clk 0:02:57]}
2... g6 {[%clk 0:03:00.2]} 3. Bb2 {[%clk 0:02:57.9]} 3... Bg7 {[%clk 0:03:00.9]}
4. g3 {[%clk 0:02:57.7]} 4... O-O {[%clk 0:03:01.4]} 5. Bg2 {[%clk 0:02:58.4]}
5... d5 {[%clk 0:03:02]} 6. O-O {[%clk 0:02:58.8]} 6... c5 {[%clk 0:03:02.6]} 7.
d4 {[%clk 0:02:59.1]} 7... Ne4 {[%clk 0:03:02.1]} 8. Nbd2 {[%clk 0:02:49.8]}
8... Nc6 {[%clk 0:03:01.9]} 9. e3 {[%clk 0:02:46.9]} 9... Bf5 {[%clk 0:02:59.6]}
10. Qc1 {[%clk 0:02:45.8]} 10... Rc8 {[%clk 0:02:59.1]} 11. dxc5 {[%clk
0:02:44.9]} 11... e5 {[%clk 0:02:52.6]} 12. Nxe4 {[%clk 0:02:39.9]} 12... Bxe4
{[%clk 0:02:53.5]} 13. Rd1 {[%clk 0:02:30]} 13... Qe7 {[%clk 0:02:52.1]} 14. c4
{[%clk 0:02:25.1]} 14... Rfd8 {[%clk 0:02:41.1]} 15. cxd5 {[%clk 0:01:50.6]}
15... Rxd5 {[%clk 0:02:39.1]} 16. Qc4 {[%clk 0:01:45.2]} 16... Bxf3 {[%clk
0:02:33.7]} 17. Bxf3 {[%clk 0:01:46.1]} 17... Rxc5 {[%clk 0:02:34.3]} 18. Qa4
{[%clk 0:01:39.2]} 18... Rc2 {[%clk 0:02:30.3]} 19. Ba3 {[%clk 0:01:33.5]} 19...
Qf6 {[%clk 0:02:30]} 20. Qe4 {[%clk 0:01:28.9]} 20... Nd8 {[%clk 0:01:57.1]} 21.
Rd6 {[%clk 0:01:23.4]} 21... Ne6 {[%clk 0:01:56.9]} 22. h4 {[%clk 0:01:01.2]}
22... b6 {[%clk 0:01:49.3]} 23. Rad1 {[%clk 0:00:58.6]} 23... h5 {[%clk
0:01:46.8]} 24. Rd7 {[%clk 0:00:38.7]} 24... Rxa2 {[%clk 0:01:40.7]} 25. Be7
{[%clk 0:00:33.2]} 25... Qf5 {[%clk 0:01:33.2]} 26. Qxf5 {[%clk 0:00:33.4]}
26... gxf5 {[%clk 0:01:34.1]} 27. Bxh5 {[%clk 0:00:34.1]} 27... Rcc2 {[%clk
0:01:30.2]} 28. Bb4 {[%clk 0:00:19.5]} 28... Rxf2 {[%clk 0:01:04.1]} 29. Bxf7+
{[%clk 0:00:18.9]} 29... Kh8 {[%clk 0:01:04.7]} 30. Bxe6 {[%clk 0:00:19.8]}
30... Rg2+ {[%clk 0:01:04.8]} 31. Kh1 {[%clk 0:00:20.5]} 31... Rh2+ {[%clk
0:01:05.5]} 32. Kg1 {[%clk 0:00:21.1]} 32... Rag2+ {[%clk 0:01:05.7]} 33. Kf1
{[%clk 0:00:21.8]} 33... Rf2+ {[%clk 0:01:05.6]} 34. Kg1 {[%clk 0:00:22.2]}
34... Rfg2+ {[%clk 0:01:06.2]} 35. Kf1 {[%clk 0:00:22.7]} 35... Rf2+ {[%clk
0:01:07.1]} 36. Kg1 {[%clk 0:00:23.2]} 36... Rfg2+ {[%clk 0:01:06.9]} 1/2-1/2

[Event "Early-Titled-Tuesday-Blitz-March-19-2024"]
[Site "Chess.com"]
[Date "2024.03.19"]
[Round "1"]
[White "marcodobrikov"]
[Black "HanSchut"]
[Result "1-0"]
[WhiteElo "2672"]
[BlackElo "2327"]
[TimeControl "180+1"]
[EndTime "8:06:04 PDT"]
[Termination "marcodobrikov won by resignation"]

1. d4 {[%clk 0:02:56.7]} 1... Nf6 {[%clk 0:02:59.5]} 2. Bg5 {[%clk 0:02:55.6]}
2... d5 {[%clk 0:02:59.5]} 3. Bxf6 {[%clk 0:02:55.5]} 3... exf6 {[%clk
0:03:00.4]} 4. e3 {[%clk 0:02:53.1]} 4... Bd6 {[%clk 0:03:00.7]} 5. c4 {[%clk
0:02:52.7]} 5... dxc4 {[%clk 0:03:01.4]} 6. Bxc4 {[%clk 0:02:52.4]} 6... O-O
{[%clk 0:03:01.6]} 7. Nc3 {[%clk 0:02:52.7]} 7... c6 {[%clk 0:03:01.2]} 8. Nge2
{[%clk 0:02:52.8]} 8... f5 {[%clk 0:03:00.8]} 9. O-O {[%clk 0:02:52.9]} 9... Qe7
{[%clk 0:02:56.7]} 10. g3 {[%clk 0:02:52.6]} 10... Nd7 {[%clk 0:02:54.7]} 11. a3
{[%clk 0:02:52.2]} 11... Nf6 {[%clk 0:02:36.4]} 12. b4 {[%clk 0:02:47.7]} 12...
Be6 {[%clk 0:02:32.2]} 13. Qb3 {[%clk 0:02:39.7]} 13... Bxc4 {[%clk 0:02:26.6]}
14. Qxc4 {[%clk 0:02:40.6]} 14... Ne4 {[%clk 0:02:22.3]} 15. Rfd1 {[%clk
0:02:31.7]} 15... Nxc3 {[%clk 0:02:15.2]} 16. Nxc3 {[%clk 0:02:31.4]} 16... h5
{[%clk 0:02:15.7]} 17. h4 {[%clk 0:02:27.5]} 17... g5 {[%clk 0:02:06.7]} 18.
hxg5 {[%clk 0:02:27]} 18... Qxg5 {[%clk 0:02:03.1]} 19. d5 {[%clk 0:02:14.3]}
19... Be5 {[%clk 0:01:39.9]} 20. dxc6 {[%clk 0:02:07.8]} 20... Bxc3 {[%clk
0:01:32.3]} 21. cxb7 {[%clk 0:01:59.6]} 21... Rab8 {[%clk 0:01:22.6]} 22. Qxc3
{[%clk 0:02:00]} 22... h4 {[%clk 0:01:21.7]} 23. Rd7 {[%clk 0:01:47.7]} 23...
hxg3 {[%clk 0:01:16.4]} 24. Qe5 {[%clk 0:01:42.9]} 24... gxf2+ {[%clk
0:01:07.6]} 25. Kxf2 {[%clk 0:01:43.8]} 25... Rfe8 {[%clk 0:00:50.1]} 26. Qxe8+
{[%clk 0:01:36.6]} 26... Rxe8 {[%clk 0:00:48.7]} 27. Rg1 {[%clk 0:01:37.3]}
27... Qxg1+ {[%clk 0:00:37.8]} 28. Kxg1 {[%clk 0:01:38.2]} 28... Rb8 {[%clk
0:00:37.9]} 29. Rc7 {[%clk 0:01:38.8]} 29... Kg7 {[%clk 0:00:37.6]} 30. a4
{[%clk 0:01:39.4]} 30... Kf6 {[%clk 0:00:37.7]} 31. a5 {[%clk 0:01:39.4]} 31...
a6 {[%clk 0:00:38.3]} 32. b5 {[%clk 0:01:39.6]} 32... axb5 {[%clk 0:00:38.7]}
33. a6 {[%clk 0:01:39.8]} 33... b4 {[%clk 0:00:20.5]} 34. a7 {[%clk 0:01:39]}
34... Rg8+ {[%clk 0:00:21.4]} 35. Kf2 {[%clk 0:01:38.2]} 35... b3 {[%clk
0:00:19.6]} 36. b8=Q {[%clk 0:01:39.1]} 36... b2 {[%clk 0:00:17.2]} 37. a8=Q
{[%clk 0:01:36.7]} 37... b1=Q {[%clk 0:00:15.9]} 38. Rc6+ {[%clk 0:01:36.7]}
38... Ke7 {[%clk 0:00:08.4]} 39. Qxg8 {[%clk 0:01:25.6]} 1-0

[Event "Early-Titled-Tuesday-Blitz-March-19-2024"]
[Site "Chess.com"]
[Date "2024.03.19"]
[Round "1"]
[White "GOGIEFF"]
[Black "Lovetov"]
[Result "1/2-1/2"]
[WhiteElo "3001"]
[BlackElo "2559"]
[TimeControl "180+1"]
[EndTime "8:06:09 PDT"]
[Termination "Game drawn by repetition"]

1. d4 {[%clk 0:03:00.9]} 1... Nf6 {[%clk 0:02:59.6]} 2. Nf3 {[%clk 0:03:00.7]}
2... g6 {[%clk 0:02:59.5]} 3. c4 {[%clk 0:03:00.9]} 3... Bg7 {[%clk 0:02:59.7]}
4. Nc3 {[%clk 0:03:01.3]} 4... d5 {[%clk 0:03:00.4]} 5. cxd5 {[%clk 0:03:01.6]}
5... Nxd5 {[%clk 0:03:01.3]} 6. Bd2 {[%clk 0:03:02.1]} 6... O-O {[%clk
0:02:54.6]} 7. Rc1 {[%clk 0:02:58.8]} 7... Nxc3 {[%clk 0:02:41.9]} 8. Bxc3
{[%clk 0:02:58.5]} 8... Qd5 {[%clk 0:02:31.4]} 9. Qb3 {[%clk 0:02:45.2]} 9...
Qxb3 {[%clk 0:02:25.3]} 10. axb3 {[%clk 0:02:46.1]} 10... c6 {[%clk 0:02:17.8]}
11. e3 {[%clk 0:02:43.4]} 11... Nd7 {[%clk 0:02:14.1]} 12. Bc4 {[%clk
0:02:40.8]} 12... Nb6 {[%clk 0:02:11.6]} 13. Bd3 {[%clk 0:02:31.1]} 13... Be6
{[%clk 0:02:11.7]} 14. b4 {[%clk 0:02:30.8]} 14... Bc4 {[%clk 0:02:10.8]} 15.
Ke2 {[%clk 0:02:25.7]} 15... Rfd8 {[%clk 0:02:08.7]} 16. Bxc4 {[%clk 0:02:11.7]}
16... Nxc4 {[%clk 0:02:08.5]} 17. Rhd1 {[%clk 0:02:11.6]} 17... Nd6 {[%clk
0:02:03.7]} 18. Nd2 {[%clk 0:02:08.2]} 18... Nb5 {[%clk 0:02:02.3]} 19. Nb3
{[%clk 0:02:08.3]} 19... e5 {[%clk 0:01:57.3]} 20. dxe5 {[%clk 0:01:55.6]} 20...
Nxc3+ {[%clk 0:01:57.3]} 21. bxc3 {[%clk 0:01:54.7]} 21... Bxe5 {[%clk
0:01:57.7]} 22. Rxd8+ {[%clk 0:01:48.9]} 22... Rxd8 {[%clk 0:01:57.2]} 23. h3
{[%clk 0:01:46.5]} 23... Kf8 {[%clk 0:01:46.4]} 24. Nd4 {[%clk 0:01:44.9]} 24...
Ke7 {[%clk 0:01:39.4]} 25. Ra1 {[%clk 0:01:41.5]} 25... a6 {[%clk 0:01:37.1]}
26. g4 {[%clk 0:01:37.9]} 26... Bxd4 {[%clk 0:01:11.1]} 27. cxd4 {[%clk
0:01:34.5]} 27... Rd5 {[%clk 0:01:10.9]} 28. Ra5 {[%clk 0:01:30.7]} 28... Rxa5
{[%clk 0:01:05.2]} 29. bxa5 {[%clk 0:01:30.9]} 29... Kd6 {[%clk 0:00:49.9]} 30.
Kd3 {[%clk 0:01:28.5]} 30... c5 {[%clk 0:00:46.1]} 31. Kc4 {[%clk 0:01:27.8]}
31... cxd4 {[%clk 0:00:45.8]} 32. exd4 {[%clk 0:01:28.2]} 32... Kc6 {[%clk
0:00:38.7]} 33. d5+ {[%clk 0:01:28]} 33... Kd6 {[%clk 0:00:37.8]} 34. Kd4 {[%clk
0:01:28.3]} 34... g5 {[%clk 0:00:37.5]} 35. f3 {[%clk 0:01:26.9]} 35... Kd7
{[%clk 0:00:30]} 36. Kc5 {[%clk 0:01:27]} 36... Kc7 {[%clk 0:00:30.6]} 37. d6+
{[%clk 0:01:27.3]} 37... Kd7 {[%clk 0:00:31.1]} 38. Kd5 {[%clk 0:01:27.7]} 38...
Kd8 {[%clk 0:00:27.2]} 39. Kc5 {[%clk 0:01:24.1]} 39... Kd7 {[%clk 0:00:27.8]}
40. Kb6 {[%clk 0:01:24.5]} 40... Kxd6 {[%clk 0:00:27.9]} 41. Kxb7 {[%clk
0:01:24.9]} 41... Kc5 {[%clk 0:00:27.7]} 42. Kxa6 {[%clk 0:01:24.8]} 42... Kc6
{[%clk 0:00:28.4]} 43. Ka7 {[%clk 0:01:25.1]} 43... Kc7 {[%clk 0:00:28.8]} 44.
Ka6 {[%clk 0:01:15.3]} 44... Kc6 {[%clk 0:00:29.1]} 45. Ka7 {[%clk 0:01:15.8]}
45... Kc7 {[%clk 0:00:29.6]} 46. Ka6 {[%clk 0:01:16.3]} 46... Kc6 {[%clk
0:00:30.1]} 1/2-1/2

[Event "Early-Titled-Tuesday-Blitz-March-19-2024"]
[Site "Chess.com"]
[Date "2024.03.19"]
[Round "1"]
[White "temus_galaktionov"]
[Black "malakismayil"]
[Result "1-0"]
[WhiteElo "2878"]
[BlackElo "2498"]
[TimeControl "180+1"]
[EndTime "8:06:11 PDT"]
[Termination "temus_galaktionov won on time"]

1. d4 {[%clk 0:02:48.8]} 1... d5 {[%clk 0:02:59.7]} 2. c4 {[%clk 0:02:45.6]}
2... e6 {[%clk 0:02:59.8]} 3. Nf3 {[%clk 0:02:45.4]} 3... Nf6 {[%clk 0:02:57.3]}
4. Nc3 {[%clk 0:02:45.2]} 4... Bb4 {[%clk 0:02:54.7]} 5. cxd5 {[%clk 0:02:44.4]}
5... exd5 {[%clk 0:02:53.7]} 6. Bg5 {[%clk 0:02:43.8]} 6... O-O {[%clk
0:02:52.8]} 7. e3 {[%clk 0:02:42.3]} 7... h6 {[%clk 0:02:53.1]} 8. Bxf6 {[%clk
0:02:42.4]} 8... Qxf6 {[%clk 0:02:52.6]} 9. Bd3 {[%clk 0:02:43.3]} 9... c6
{[%clk 0:02:52.8]} 10. O-O {[%clk 0:02:38.5]} 10... Bd6 {[%clk 0:02:52.8]} 11.
e4 {[%clk 0:02:38.2]} 11... dxe4 {[%clk 0:02:52.8]} 12. Nxe4 {[%clk 0:02:39.1]}
12... Qd8 {[%clk 0:02:52.5]} 13. Re1 {[%clk 0:02:36.4]} 13... Bg4 {[%clk
0:02:47.5]} 14. h3 {[%clk 0:02:36.9]} 14... Bh5 {[%clk 0:02:45.8]} 15. Qb3
{[%clk 0:02:33.7]} 15... Bxf3 {[%clk 0:02:42.3]} 16. gxf3 {[%clk 0:02:34.6]}
16... b6 {[%clk 0:02:26.8]} 17. Rac1 {[%clk 0:02:34.2]} 17... Bf4 {[%clk
0:02:26.5]} 18. Rcd1 {[%clk 0:02:29.3]} 18... Qxd4 {[%clk 0:01:30.7]} 19. Bb1
{[%clk 0:02:28.6]} 19... Qe5 {[%clk 0:01:29.8]} 20. Qc2 {[%clk 0:02:28.1]} 20...
g6 {[%clk 0:00:57.5]} 21. Kg2 {[%clk 0:02:21.3]} 21... c5 {[%clk 0:00:45]} 22.
Ng3 {[%clk 0:02:17.4]} 22... Qg5 {[%clk 0:00:43.2]} 23. Qe4 {[%clk 0:02:16.7]}
23... Na6 {[%clk 0:00:42.7]} 24. Rd5 {[%clk 0:02:16.7]} 24... Qh4 {[%clk
0:00:12]} 25. Rd7 {[%clk 0:01:42.6]} 25... Bxg3 {[%clk 0:00:09.1]} 26. fxg3
{[%clk 0:01:43.5]} 26... Qxe4 {[%clk 0:00:08.7]} 27. Bxe4 {[%clk 0:01:44.4]}
27... Rae8 {[%clk 0:00:06.5]} 28. Rxa7 {[%clk 0:01:42.6]} 28... Nb4 {[%clk
0:00:06.5]} 29. a3 {[%clk 0:01:39.2]} 29... Nd3 {[%clk 0:00:04.4]} 30. Re2
{[%clk 0:01:37.2]} 30... Ne5 {[%clk 0:00:03.5]} 31. Rb7 {[%clk 0:01:34.1]} 31...
Re6 {[%clk 0:00:03.2]} 32. Bd5 {[%clk 0:01:32.2]} 32... Ree8 {[%clk 0:00:03.9]}
33. Rxb6 {[%clk 0:01:30.5]} 33... Kg7 {[%clk 0:00:04.5]} 34. Rb7 {[%clk
0:01:26.5]} 34... Kh7 {[%clk 0:00:01.6]} 35. b3 {[%clk 0:01:24.7]} 35... Kg7
{[%clk 0:00:01.6]} 36. a4 {[%clk 0:01:24.4]} 1-0

[Event "Early-Titled-Tuesday-Blitz-March-19-2024"]
[Site "Chess.com"]
[Date "2024.03.19"]
[Round "1"]
[White "Muslim_player_05"]
[Black "alexrustemov"]
[Result "0-1"]
[WhiteElo "2494"]
[BlackElo "2873"]
[TimeControl "180+1"]
[EndTime "8:06:11 PDT"]
[Termination "alexrustemov won by resignation"]

1. d4 {[%clk 0:03:00.9]} 1... d5 {[%clk 0:02:59.9]} 2. c4 {[%clk 0:02:59.9]}
2... c6 {[%clk 0:03:00]} 3. Nf3 {[%clk 0:02:58.5]} 3... Nf6 {[%clk 0:03:00.3]}
4. g3 {[%clk 0:02:57.3]} 4... dxc4 {[%clk 0:02:57.1]} 5. Bg2 {[%clk 0:02:47.8]}
5... b5 {[%clk 0:02:56.7]} 6. a4 {[%clk 0:02:41.9]} 6... Bb7 {[%clk 0:02:56.4]}
7. O-O {[%clk 0:02:36.5]} 7... e6 {[%clk 0:02:54.5]} 8. Ne5 {[%clk 0:02:34.9]}
8... a6 {[%clk 0:02:49.2]} 9. Nc3 {[%clk 0:02:27.3]} 9... Nd5 {[%clk 0:02:29.1]}
10. e4 {[%clk 0:02:13.3]} 10... Nxc3 {[%clk 0:02:28.8]} 11. bxc3 {[%clk
0:02:14.2]} 11... Nd7 {[%clk 0:02:26.5]} 12. f4 {[%clk 0:02:12.8]} 12... Be7
{[%clk 0:02:25.7]} 13. Qg4 {[%clk 0:02:05.6]} 13... O-O {[%clk 0:02:25.2]} 14.
f5 {[%clk 0:01:52.9]} 14... exf5 {[%clk 0:02:11.8]} 15. exf5 {[%clk 0:01:37.4]}
15... Nf6 {[%clk 0:02:01.3]} 16. Qe2 {[%clk 0:01:14.4]} 16... Nd5 {[%clk
0:02:01]} 17. Bd2 {[%clk 0:01:14.3]} 17... c5 {[%clk 0:01:59.2]} 18. axb5 {[%clk
0:00:55.8]} 18... axb5 {[%clk 0:01:59]} 19. Rxa8 {[%clk 0:00:55]} 19... Bxa8
{[%clk 0:01:57.8]} 20. dxc5 {[%clk 0:00:49.8]} 20... Bxc5+ {[%clk 0:01:57]} 21.
Kh1 {[%clk 0:00:50.5]} 21... Re8 {[%clk 0:01:56.2]} 22. Rd1 {[%clk 0:00:34.2]}
22... f6 {[%clk 0:01:50]} 23. Bf4 {[%clk 0:00:27.1]} 23... fxe5 {[%clk
0:01:49.8]} 24. Bxe5 {[%clk 0:00:26.8]} 24... Qd7 {[%clk 0:01:01.4]} 25. Qa2
{[%clk 0:00:20.6]} 25... Bc6 {[%clk 0:00:57.5]} 26. Bf4 {[%clk 0:00:11.5]} 26...
Nxf4 {[%clk 0:00:52.7]} 0-1

[Event "Early-Titled-Tuesday-Blitz-March-19-2024"]
[Site "Chess.com"]
[Date "2024.03.19"]
[Round "1"]
[White "Shahdad2007"]
[Black "shirovin"]
[Result "1-0"]
[WhiteElo "2587"]
[BlackElo "2049"]
[TimeControl "180+1"]
[EndTime "8:06:12 PDT"]
[Termination "Shahdad2007 won on time"]

1. e4 {[%clk 0:02:58.9]} 1... d6 {[%clk 0:02:58.4]} 2. d4 {[%clk 0:02:55.8]}
2... Nf6 {[%clk 0:02:58.9]} 3. Nc3 {[%clk 0:02:56.1]} 3... e5 {[%clk 0:02:58.8]}
4. Nf3 {[%clk 0:02:53.1]} 4... Nbd7 {[%clk 0:02:57.1]} 5. Bc4 {[%clk 0:02:47.7]}
5... Be7 {[%clk 0:02:56.9]} 6. Rg1 {[%clk 0:02:40]} 6... O-O {[%clk 0:02:54.2]}
7. g4 {[%clk 0:02:34.8]} 7... exd4 {[%clk 0:02:53]} 8. Nxd4 {[%clk 0:02:34.7]}
8... Ne5 {[%clk 0:02:53]} 9. Be2 {[%clk 0:02:32.4]} 9... c5 {[%clk 0:02:40.8]}
10. Nf5 {[%clk 0:02:30.4]} 10... Bxf5 {[%clk 0:02:32.4]} 11. gxf5 {[%clk
0:02:30.1]} 11... Kh8 {[%clk 0:02:32]} 12. Be3 {[%clk 0:02:22.4]} 12... b5
{[%clk 0:02:14.9]} 13. Bxb5 {[%clk 0:02:18.2]} 13... Rb8 {[%clk 0:02:13.7]} 14.
a4 {[%clk 0:01:57.2]} 14... a6 {[%clk 0:02:12.6]} 15. Bxa6 {[%clk 0:01:57]}
15... Rxb2 {[%clk 0:02:10.2]} 16. Be2 {[%clk 0:01:56.8]} 16... Qa5 {[%clk
0:01:58.8]} 17. Bd2 {[%clk 0:01:56.6]} 17... Qa7 {[%clk 0:01:44.9]} 18. a5
{[%clk 0:01:56.6]} 18... Rd8 {[%clk 0:01:40.8]} 19. a6 {[%clk 0:01:55.7]} 19...
d5 {[%clk 0:01:38.8]} 20. Qc1 {[%clk 0:01:34.7]} 20... Rb4 {[%clk 0:01:20.2]}
21. exd5 {[%clk 0:01:32.4]} 21... Rh4 {[%clk 0:01:05.1]} 22. Bf4 {[%clk
0:01:29.9]} 22... Nxd5 {[%clk 0:01:03.3]} 23. Bxe5 {[%clk 0:01:30]} 23... Nxc3
{[%clk 0:00:53.1]} 24. Bxg7+ {[%clk 0:01:29.2]} 24... Kg8 {[%clk 0:00:50.4]} 25.
Bxc3+ {[%clk 0:01:30.1]} 25... Kf8 {[%clk 0:00:48.6]} 26. Qe3 {[%clk 0:01:26.7]}
26... Rxh2 {[%clk 0:00:43.9]} 27. Bg7+ {[%clk 0:01:25.9]} 27... Ke8 {[%clk
0:00:39.9]} 28. f6 {[%clk 0:01:26]} 28... Rd6 {[%clk 0:00:36.6]} 29. Qxe7+
{[%clk 0:01:23.3]} 29... Qxe7 {[%clk 0:00:35.5]} 30. fxe7 {[%clk 0:01:24.2]}
30... Re6 {[%clk 0:00:35]} 31. a7 {[%clk 0:01:23.8]} 31... Rg6 {[%clk
0:00:22.8]} 32. a8=Q+ {[%clk 0:01:23.4]} 32... Kxe7 {[%clk 0:00:22]} 33. Ra7+
{[%clk 0:01:23.8]} 33... Ke6 {[%clk 0:00:21.8]} 34. Qe4+ {[%clk 0:01:23.8]}
34... Kd6 {[%clk 0:00:20.9]} 35. Be5+ {[%clk 0:01:24.4]} 1-0

[Event "Early-Titled-Tuesday-Blitz-March-19-2024"]
[Site "Chess.com"]
[Date "2024.03.19"]
[Round "1"]
[White "CSB7"]
[Black "Laico"]
[Result "1-0"]
[WhiteElo "2780"]
[BlackElo "2426"]
[TimeControl "180+1"]
[EndTime "8:06:14 PDT"]
[Termination "CSB7 won on time"]

1. e4 {[%clk 0:03:00.1]} 1... e6 {[%clk 0:03:00.5]} 2. d4 {[%clk 0:02:51.6]}
2... d5 {[%clk 0:03:01]} 3. Nc3 {[%clk 0:02:52.3]} 3... Nf6 {[%clk 0:02:59.8]}
4. Bg5 {[%clk 0:02:49.9]} 4... Be7 {[%clk 0:02:59.8]} 5. e5 {[%clk 0:02:48.5]}
5... Nfd7 {[%clk 0:03:00]} 6. Bxe7 {[%clk 0:02:49]} 6... Qxe7 {[%clk 0:03:00.9]}
7. f4 {[%clk 0:02:49.4]} 7... O-O {[%clk 0:03:00.9]} 8. Nf3 {[%clk 0:02:47.6]}
8... c5 {[%clk 0:03:01.2]} 9. Bd3 {[%clk 0:02:38.3]} 9... f6 {[%clk 0:03:00.3]}
10. O-O {[%clk 0:02:15.2]} 10... cxd4 {[%clk 0:02:51.3]} 11. Nb5 {[%clk
0:02:13.9]} 11... Nc6 {[%clk 0:02:49.9]} 12. Qe2 {[%clk 0:01:42.6]} 12... fxe5
{[%clk 0:02:40.2]} 13. fxe5 {[%clk 0:01:29.8]} 13... a6 {[%clk 0:02:39.2]} 14.
Nbxd4 {[%clk 0:01:28.6]} 14... Ndxe5 {[%clk 0:02:14.5]} 15. Nxe5 {[%clk
0:01:29.5]} 15... Nxd4 {[%clk 0:02:14.5]} 16. Bxh7+ {[%clk 0:01:27.1]} 16...
Kxh7 {[%clk 0:02:10.6]} 17. Qh5+ {[%clk 0:01:27.6]} 17... Kg8 {[%clk 0:02:02.8]}
18. Ng6 {[%clk 0:01:28.5]} 18... Nf3+ {[%clk 0:01:39.4]} 19. Kh1 {[%clk
0:00:57.9]} 19... Qh4 {[%clk 0:00:51.2]} 20. Qxh4 {[%clk 0:00:47.9]} 20... Nxh4
{[%clk 0:00:47.6]} 21. Rxf8+ {[%clk 0:00:48.8]} 21... Kh7 {[%clk 0:00:47.7]} 22.
Nxh4 {[%clk 0:00:49.7]} 22... Bd7 {[%clk 0:00:43.1]} 23. Rxa8 {[%clk 0:00:48.5]}
1-0

[Event "Early-Titled-Tuesday-Blitz-March-19-2024"]
[Site "Chess.com"]
[Date "2024.03.19"]
[Round "1"]
[White "Mikasinski"]
[Black "Niilo1"]
[Result "1-0"]
[WhiteElo "2654"]
[BlackElo "2299"]
[TimeControl "180+1"]
[EndTime "8:06:14 PDT"]
[Termination "Mikasinski won by checkmate"]

1. e4 {[%clk 0:02:59.2]} 1... e5 {[%clk 0:02:59.1]} 2. Nf3 {[%clk 0:02:59]} 2...
Nc6 {[%clk 0:02:59.3]} 3. Nc3 {[%clk 0:02:58.9]} 3... Nf6 {[%clk 0:02:59.1]} 4.
Bb5 {[%clk 0:02:59.5]} 4... Nd4 {[%clk 0:02:58.9]} 5. Nxd4 {[%clk 0:02:59.3]}
5... exd4 {[%clk 0:02:58.6]} 6. e5 {[%clk 0:03:00.2]} 6... dxc3 {[%clk
0:02:58.6]} 7. exf6 {[%clk 0:03:00.2]} 7... Qxf6 {[%clk 0:02:46.3]} 8. dxc3
{[%clk 0:02:59.1]} 8... Qe5+ {[%clk 0:02:31.2]} 9. Be2 {[%clk 0:02:56.5]} 9...
d5 {[%clk 0:02:19.8]} 10. Be3 {[%clk 0:02:49.3]} 10... Bd6 {[%clk 0:02:16.1]}
11. Qd2 {[%clk 0:02:48.7]} 11... O-O {[%clk 0:02:13.1]} 12. O-O-O {[%clk
0:02:48.9]} 12... c6 {[%clk 0:02:11.6]} 13. Kb1 {[%clk 0:02:43.5]} 13... Be6
{[%clk 0:02:06.2]} 14. h4 {[%clk 0:02:38.6]} 14... a5 {[%clk 0:02:02.4]} 15. h5
{[%clk 0:02:37.8]} 15... h6 {[%clk 0:01:54.1]} 16. g3 {[%clk 0:02:36.9]} 16...
Qf6 {[%clk 0:01:44.8]} 17. f4 {[%clk 0:02:25.3]} 17... b5 {[%clk 0:01:38.8]} 18.
g4 {[%clk 0:02:17.9]} 18... b4 {[%clk 0:01:28.7]} 19. g5 {[%clk 0:02:16.4]}
19... bxc3 {[%clk 0:00:49.9]} 20. gxf6 {[%clk 0:02:14]} 20... cxd2 {[%clk
0:00:50.2]} 21. Rhg1 {[%clk 0:02:06.2]} 21... g6 {[%clk 0:00:29.8]} 22. Bd3
{[%clk 0:01:54]} 22... Kh7 {[%clk 0:00:13.9]} 23. hxg6+ {[%clk 0:01:32.6]} 23...
fxg6 {[%clk 0:00:14.8]} 24. Rxg6 {[%clk 0:01:33.1]} 24... Rg8 {[%clk 0:00:06.7]}
25. Rg7+ {[%clk 0:00:54.2]} 25... Kh8 {[%clk 0:00:06.1]} 26. Rh7# {[%clk
0:00:53.1]} 1-0

[Event "Early-Titled-Tuesday-Blitz-March-19-2024"]
[Site "Chess.com"]
[Date "2024.03.19"]
[Round "1"]
[White "DvaHrasta"]
[Black "The_Machine04"]
[Result "1/2-1/2"]
[WhiteElo "2455"]
[BlackElo "2812"]
[TimeControl "180+1"]
[EndTime "8:06:22 PDT"]
[Termination "Game drawn by repetition"]

1. c4 {[%clk 0:03:00.9]} 1... d6 {[%clk 0:02:59.1]} 2. g3 {[%clk 0:03:00.6]}
2... e5 {[%clk 0:02:58.3]} 3. Bg2 {[%clk 0:03:00.8]} 3... g6 {[%clk 0:02:58.3]}
4. Nc3 {[%clk 0:03:00.7]} 4... Bg7 {[%clk 0:02:58.4]} 5. Nf3 {[%clk 0:03:00.7]}
5... Ne7 {[%clk 0:02:58.7]} 6. O-O {[%clk 0:03:00.3]} 6... c5 {[%clk 0:02:53.7]}
7. Ne1 {[%clk 0:02:58.1]} 7... Nbc6 {[%clk 0:02:53.7]} 8. Nc2 {[%clk 0:02:58.1]}
8... O-O {[%clk 0:02:53.3]} 9. Ne3 {[%clk 0:02:58.2]} 9... a6 {[%clk 0:02:49.1]}
10. Ned5 {[%clk 0:02:57.6]} 10... Nxd5 {[%clk 0:02:49.1]} 11. Nxd5 {[%clk
0:02:55]} 11... Be6 {[%clk 0:02:48.6]} 12. d3 {[%clk 0:02:49.2]} 12... Rb8
{[%clk 0:02:48.2]} 13. a4 {[%clk 0:02:48.3]} 13... Ne7 {[%clk 0:02:44.7]} 14.
Bg5 {[%clk 0:02:41.9]} 14... f6 {[%clk 0:02:42.6]} 15. Nxe7+ {[%clk 0:02:41.7]}
15... Qxe7 {[%clk 0:02:41.8]} 16. Bd2 {[%clk 0:02:41.2]} 16... Rfd8 {[%clk
0:02:28.5]} 17. e4 {[%clk 0:02:32.4]} 17... b5 {[%clk 0:02:23]} 18. axb5 {[%clk
0:02:24.7]} 18... axb5 {[%clk 0:02:23.9]} 19. b3 {[%clk 0:02:20.6]} 19... Ra8
{[%clk 0:02:22.3]} 20. Qc2 {[%clk 0:01:57.3]} 20... b4 {[%clk 0:02:15.9]} 21.
Qb2 {[%clk 0:01:51]} 21... h5 {[%clk 0:02:04.5]} 22. Rxa8 {[%clk 0:01:49.8]}
22... Rxa8 {[%clk 0:02:05.4]} 23. Ra1 {[%clk 0:01:49.1]} 23... Qb7 {[%clk
0:02:04.3]} 24. h4 {[%clk 0:01:47.4]} 24... Ra6 {[%clk 0:02:01.6]} 25. Kh2
{[%clk 0:01:42.1]} 25... Qa7 {[%clk 0:02:01]} 26. Rxa6 {[%clk 0:01:40.2]} 26...
Qxa6 {[%clk 0:02:01.9]} 27. Bh3 {[%clk 0:01:30.3]} 27... f5 {[%clk 0:02:01.3]}
28. Bc1 {[%clk 0:01:07.1]} 28... Kf7 {[%clk 0:01:59.7]} 29. Qe2 {[%clk
0:01:01.4]} 29... Qc8 {[%clk 0:01:31.5]} 30. exf5 {[%clk 0:00:55.6]} 30... Bxf5
{[%clk 0:01:32.4]} 31. Bxf5 {[%clk 0:00:52.5]} 31... Qxf5 {[%clk 0:01:33.3]} 32.
Kg2 {[%clk 0:00:51.1]} 32... Qe6 {[%clk 0:01:11.6]} 33. Qf3+ {[%clk 0:00:43.8]}
33... Bf6 {[%clk 0:01:08]} 34. Qb7+ {[%clk 0:00:38]} 34... Qe7 {[%clk
0:01:06.3]} 35. Qxe7+ {[%clk 0:00:33.5]} 35... Bxe7 {[%clk 0:01:06.3]} 36. Kf3
{[%clk 0:00:33.2]} 36... Ke6 {[%clk 0:01:06.6]} 37. Ke4 {[%clk 0:00:33.1]} 37...
Bf6 {[%clk 0:01:04.2]} 38. Bd2 {[%clk 0:00:32.7]} 38... Bd8 {[%clk 0:01:03.1]}
39. Bc1 {[%clk 0:00:31.5]} 39... Be7 {[%clk 0:01:02.8]} 40. Bd2 {[%clk
0:00:31.7]} 40... Bf6 {[%clk 0:01:00.1]} 41. Bc1 {[%clk 0:00:31.6]} 41... Be7
{[%clk 0:01:00.5]} 42. Bd2 {[%clk 0:00:31.6]} 42... Bd8 {[%clk 0:01:00.5]} 43.
Bc1 {[%clk 0:00:31.6]} 43... Be7 {[%clk 0:01:00.8]} 1/2-1/2